bitfinex-derivatives/quotes_BNBF0:USTF0_20250509
["timestamp","ask_amount","ask_price","bid_price","bid_amount"]
[1746809985943,0.26410833,632.98,632.07,1.57988278]
[1746809986146,0.26410833,632.98,632.08,0.98144617]
[1746809986446,0.26410833,632.98,632.09,0.98201127]
[1746809986742,0.26410833,632.98,632.1,0.98201127]
[1746809986946,0.31597573,632.96,632.11,0.98201127]
[1746809987244,0.31597573,632.96,632.12,0.98201127]
[1746809987445,0.26410833,632.95,632.02,0.473]
[1746809987745,0.26410833,632.95,632.03,1.58052406]
[1746809987945,0.26410833,632.95,632.04,1.58052406]
[1746809988143,0.66710833,632.95,632.05,1.58113338]
[1746809988339,0.66710833,632.95,632.06,1.58113338]
[1746809988540,0.26410833,632.94,632.07,0.98243842]
[1746809988744,0.26410833,632.94,632.08,0.98243842]
[1746809989049,0.26410833,632.94,632.09,0.98243842]
[1746809989240,0.26410833,632.94,632.1,0.98243842]
[1746809989445,0.26410833,632.94,632.11,0.98243842]
[1746809989640,0.26410833,632.94,632.12,0.98243842]
[1746809989941,0.26410833,632.94,632.02,0.473]
[1746809990144,0.26410833,632.94,632.03,1.58187439]
[1746809990340,0.27517713,632.93,632.04,1.58187439]
[1746809990541,0.27517713,632.93,632.05,1.58187439]
[1746809990739,0.26410833,632.92,632.06,1.58187439]
[1746809990943,0.26410833,632.92,632.07,1.58187439]
[1746809991144,0.26410833,632.92,632.08,0.98289847]
[1746809991342,0.26410833,632.92,632.02,0.473]
[1746809993047,0.26410833,632.94,632.02,0.473]
[1746809993247,0.27528161,632.91,632.02,0.473]
[1746809993745,0.26410833,632.9,632.02,0.473]
[1746809994146,0.26410833,632.9,632.02,0.914]
[1746809999247,0.27515102,632.89,632.02,0.914]
[1746810000352,0.26410833,632.88,632.02,0.914]
[1746810002048,0.27517495,632.87,632.02,0.914]
[1746810002351,0.26410833,632.86,632.02,0.914]
[1746810005351,0.27512818,632.89,632.02,0.914]
[1746810005547,0.27512818,632.89,632.03,1.58919744]
[1746810005753,0.81710833,632.88,632.04,1.58919744]
[1746810005947,0.81710833,632.88,632.05,1.58919744]
[1746810006253,0.81710833,632.88,632.06,1.58919744]
[1746810006453,0.26410833,632.87,632.07,1.58953468]
[1746810006647,0.26410833,632.87,632.08,0.60106587]
[1746810006853,0.553,632.88,632.09,0.60106587]
[1746810007048,0.553,632.88,632.1,0.60106587]
[1746810007251,0.26387792,632.86,630.6,0.99497732]
[1746810007451,0.26387792,632.86,630.61,1.59043886]
[1746810007649,0.26387792,632.86,630.82,0.99497732]
[1746810007851,0.26387792,632.87,630.83,1.59145327]
[1746810008051,0.26387792,632.87,630.84,1.59145327]
[1746810008250,0.26387792,632.87,630.85,1.59145327]
[1746810008449,0.26387792,632.87,630.86,1.88214068]
[1746810008653,0.26387792,632.87,630.87,1.59145327]
[1746810008854,0.553,632.88,630.88,1.88214068]
[1746810009055,0.553,632.88,630.89,1.59145327]
[1746810009254,0.553,632.88,630.9,1.59145327]
[1746810009455,0.553,632.88,630.91,0.8925507]
[1746810009656,0.553,632.88,630.92,1.59201152]
[1746810009857,0.26379111,632.87,630.93,1.59201152]
[1746810010156,0.26379111,632.87,630.94,1.88269893]
[1746810010357,0.26379111,632.87,630.95,1.88269893]
[1746810010557,0.26379111,632.87,630.96,1.59201152]
[1746810010757,0.26379111,632.87,630.97,1.59201152]
[1746810010958,0.26379111,632.87,630.98,1.59201152]
[1746810011165,0.27528814,632.86,630.99,1.59201152]
[1746810011458,0.27528814,632.86,631.0,1.88331928]
[1746810011663,0.27528814,632.86,631.01,1.59254598]
[1746810011853,0.27528814,632.86,631.02,1.59254598]
[1746810012058,0.26383578,632.85,631.03,1.59254598]
[1746810012254,0.26383578,632.85,631.04,1.88331928]
[1746810012455,0.26383578,632.85,631.05,1.59254598]
[1746810012655,0.26383578,632.85,631.06,1.88331928]
[1746810012857,0.26383578,632.85,631.07,1.59254598]
[1746810013057,0.26383578,632.85,631.08,1.59254598]
[1746810013254,0.26383578,632.85,631.09,1.59254598]
[1746810013558,0.26383578,632.85,631.1,1.59254598]
[1746810013753,0.26383578,632.85,631.11,1.59254598]
[1746810013957,0.26383578,632.85,631.12,1.59254598]
[1746810014158,0.27526419,632.84,631.13,1.59254598]
[1746810014462,0.27526419,632.84,631.14,1.59254598]
[1746810014657,0.27526419,632.84,631.15,1.59254598]
[1746810014859,0.26383578,632.83,631.16,1.59254598]
[1746810015159,0.26383578,632.83,631.17,1.59254598]
[1746810015358,0.26383578,632.83,631.18,1.59254598]
[1746810015559,0.26383578,632.83,631.19,1.88331511]
[1746810015760,0.26383578,632.83,631.2,1.59254598]
[1746810016060,0.26383578,632.83,631.21,1.59254598]
[1746810016362,0.31605063,632.81,631.22,1.88331511]
[1746810016562,0.31605063,632.81,631.23,1.59254598]
[1746810016763,0.26383578,632.8,631.24,1.59254598]
[1746810017063,0.31606561,632.78,631.25,1.88331511]
[1746810017262,0.31606561,632.78,631.26,1.59254598]
[1746810017461,0.26383578,632.77,631.27,1.59254598]
[1746810017656,0.26383578,632.77,631.28,1.59254598]
[1746810017863,0.26383578,632.77,631.29,1.59254598]
[1746810018065,0.3160806,632.75,631.3,1.59254598]
[1746810018357,0.3160806,632.75,631.31,1.59254598]
[1746810018560,0.3160806,632.75,631.32,1.59254598]
[1746810018760,0.3160806,632.75,631.33,1.59254598]
[1746810018961,0.26383578,632.74,631.34,1.59254598]
[1746810019157,0.26383578,632.74,631.35,1.59254598]
[1746810019459,0.26383578,632.74,631.36,1.59254598]
[1746810019661,0.31609558,632.72,631.37,1.59254598]
[1746810019861,0.31609558,632.72,631.38,1.59254598]
[1746810020057,0.31609558,632.72,631.39,1.59254598]
[1746810020058,0.26398131,632.71,631.39,1.59254598]
[1746810020358,0.31611057,632.69,631.4,1.88327504]
[1746810020562,0.31611057,632.69,631.41,1.59254598]
[1746810020763,0.26398131,632.68,631.42,1.88327504]
[1746810021062,0.26398131,632.68,631.43,1.88327504]
[1746810021277,0.26398131,632.68,631.44,1.59254598]
[1746810021565,0.31611057,632.69,631.45,1.59254598]
[1746810021863,0.31611057,632.69,631.46,1.59372047]
[1746810022063,0.31611057,632.69,631.47,1.59372047]
[1746810022266,0.31611057,632.69,631.48,1.59372047]
[1746810022463,0.31611057,632.69,631.49,1.59372047]
[1746810022666,0.31611057,632.69,631.5,1.59372047]
[1746810022966,0.31611057,632.69,631.51,1.59372047]
[1746810023166,0.31611057,632.69,631.52,1.59372047]
[1746810023366,0.31611057,632.69,631.53,1.59372047]
[1746810023569,0.31611057,632.69,631.54,1.59614881]
[1746810023767,0.553,632.88,631.55,1.59614881]
[1746810023966,0.26417663,632.87,631.56,1.59614881]
[1746810024166,0.26417663,632.87,631.57,1.59614881]
[1746810024363,0.553,632.88,631.58,1.59614881]
[1746810024566,0.553,632.88,631.59,1.59614881]
[1746810024766,0.553,632.88,631.6,1.59614881]
[1746810025066,0.553,632.88,631.61,1.59614881]
[1746810025369,0.553,632.88,631.62,1.59612805]
[1746810025667,0.553,632.88,631.63,1.59612805]
[1746810025868,2.0308231,634.14,631.64,1.59612805]
[1746810026066,2.0308231,634.14,631.65,1.59612805]
[1746810026267,0.27516189,632.97,631.66,1.59612805]
[1746810026468,0.26411662,634.13,631.67,1.59612805]
[1746810026666,0.26411662,632.96,631.68,1.59612805]
[1746810026867,0.26411662,634.13,631.4,0.27516189]
[1746810027072,0.26411662,634.13,631.41,1.59674068]
[1746810027267,0.26411662,634.12,631.42,1.59674068]
[1746810027571,0.26411662,634.11,631.43,1.59674068]
[1746810027771,0.53917956,634.11,631.44,1.59674068]
[1746810027971,0.26411662,634.1,631.45,1.59677496]
[1746810028166,0.26411662,634.09,631.46,1.59677496]
[1746810028371,0.73511662,634.09,631.47,1.59677496]
[1746810028672,2.0308231,633.98,631.48,1.88755654]
[1746810028872,0.26411662,633.97,631.49,1.88755654]
[1746810029170,0.26411662,633.97,631.5,1.59687278]
[1746810029367,0.53917521,633.97,631.51,1.59687278]
[1746810029565,0.26411662,633.96,631.52,1.5968683]
[1746810029764,0.26411662,633.95,631.53,1.88755206]
[1746810029970,0.26411662,633.95,631.54,1.5968683]
[1746810030167,0.26411662,633.94,631.55,1.59685381]
[1746810030371,0.26411662,633.94,631.56,1.59685381]
[1746810030671,0.26411662,633.93,631.57,1.59685381]
[1746810030872,2.0308231,633.44,631.58,1.88753757]
[1746810031074,2.0308231,633.44,631.59,1.59685381]
[1746810031374,0.26411662,633.43,631.6,1.59685381]
[1746810031569,0.26411662,633.43,631.61,1.59685381]
[1746810031775,0.26411662,633.43,631.62,1.59685381]
[1746810031970,0.26411662,633.42,631.63,1.59685381]
[1746810032274,0.53921978,633.41,631.64,1.88753757]
[1746810032474,0.26411662,633.4,631.65,1.88753757]
[1746810032675,0.26411662,633.4,631.66,1.59685381]
[1746810032871,0.26411662,633.39,631.67,1.59685381]
[1746810033073,0.26411662,633.39,631.68,1.59685381]
[1746810033275,0.26411662,633.38,631.69,1.59699703]
[1746810033475,0.26411662,633.37,631.7,1.59699703]
[1746810033675,0.26411662,633.37,631.71,1.59704299]
[1746810033977,0.26411662,633.37,631.72,1.59704299]
[1746810034278,0.26411662,633.36,631.73,1.59704299]
[1746810034472,0.26411662,633.35,631.74,1.59704299]
[1746810034672,0.26411662,633.35,631.75,1.59704299]
[1746810034875,0.26411662,633.34,631.76,1.59704299]
[1746810035074,0.26411662,633.34,631.77,1.59704299]
[1746810035274,0.53920565,633.33,631.78,1.59704299]
[1746810035475,0.53920565,633.33,631.79,1.59704299]
[1746810035676,0.26411662,633.32,631.8,1.59704299]
[1746810035876,0.26411662,633.32,631.81,1.59704299]
[1746810036077,0.26411662,633.31,631.82,1.59704299]
[1746810036273,0.26411662,633.3,631.83,1.59704299]
[1746810036576,0.26411662,633.29,631.84,1.59704299]
[1746810036774,0.26411662,633.29,631.85,1.59704299]
[1746810036975,0.26411662,633.28,631.86,1.59704299]
[1746810037176,0.26411662,633.28,631.61,0.27509012]
[1746810037177,0.26411662,633.28,631.87,1.59761213]
[1746810037373,0.26411662,633.27,631.88,1.59761213]
[1746810037576,0.26411662,633.27,631.89,1.59761213]
[1746810037776,0.27508903,633.33,631.61,0.27509012]
[1746810037777,0.26411662,633.26,631.9,1.59761213]
[1746810037975,0.26411662,633.25,631.91,1.59767466]
[1746810038179,0.26411662,633.25,631.92,1.59767466]
[1746810038477,0.26411662,633.24,631.93,1.59767466]
[1746810038678,0.26411662,633.23,631.94,0.60357884]
[1746810038878,0.26411662,633.23,631.95,0.60357884]
[1746810039076,0.26411662,633.22,631.61,0.27509012]
[1746810039274,0.26411662,633.22,631.62,1.59809065]
[1746810039480,0.26411662,633.32,631.63,1.59809065]
[1746810039780,0.26411662,633.31,631.64,1.59809065]
[1746810039981,0.26411662,633.3,631.65,1.59809065]
[1746810040181,0.26411662,633.3,631.66,1.59809065]
[1746810040377,0.26411662,633.29,631.67,1.59809065]
[1746810040579,0.26411662,633.29,631.68,1.59809065]
[1746810040777,0.26411662,633.28,631.69,1.59809065]
[1746810040979,0.26411662,633.28,631.7,1.59809065]
[1746810041182,0.53930898,633.28,631.71,1.59809065]
[1746810041382,0.26411662,633.27,631.72,1.59809065]
[1746810041581,0.26411662,633.26,631.73,1.59809065]
[1746810041784,0.26411662,633.26,631.74,1.59809065]
[1746810042082,0.26411662,633.25,631.75,1.59809065]
[1746810042276,0.26411662,633.25,631.76,1.59745091]
[1746810042481,0.26411662,633.25,631.77,1.59745091]
[1746810042680,0.26411662,633.27,631.78,0.60367637]
[1746810042882,0.26411662,633.26,631.79,0.60367637]
[1746810043080,0.26411662,633.26,631.8,0.60367637]
[1746810043380,0.26411662,633.25,631.81,0.60367637]
[1746810043583,0.26411662,633.25,631.61,0.27519236]
[1746810043780,0.26411662,633.27,631.62,1.59650724]
[1746810043984,0.26411662,633.27,631.63,1.59650724]
[1746810044180,0.27516842,633.24,631.64,1.59650584]
[1746810044383,0.27516842,633.24,631.65,1.59650584]
[1746810044582,0.26411662,633.23,631.66,1.59650584]
[1746810044783,0.26411662,633.23,631.67,1.59650584]
[1746810044983,0.26411662,633.23,631.68,1.59650584]
[1746810045185,0.26411662,633.22,631.69,1.59650584]
[1746810045386,0.26411662,633.22,631.7,1.59650584]
[1746810045581,0.26411662,633.21,631.71,1.59650584]
[1746810045781,0.26411662,633.21,631.72,0.60305719]
[1746810045978,0.26411662,633.2,631.64,0.408]
[1746810046184,0.26411662,633.2,631.65,0.60294763]
[1746810046383,0.26411662,633.19,631.66,0.60294763]
[1746810046579,0.26411662,633.19,631.67,0.60274805]
[1746810046785,0.26411662,633.18,631.64,0.408]
[1746810047086,0.26411662,633.17,631.64,0.408]
[1746810047282,0.26411662,633.16,631.64,0.408]
[1746810047481,0.27518474,633.18,631.64,0.408]
[1746810047482,0.26411662,633.15,631.64,0.408]
[1746810047782,0.26411662,633.14,631.64,0.408]
[1746810048087,0.26411662,633.13,631.64,0.408]
[1746810048384,0.26411662,633.12,631.64,0.408]
[1746810048685,0.27518474,633.18,631.64,0.408]
[1746810048890,2.0308231,633.14,631.64,0.408]
[1746810049492,0.26399853,633.13,631.64,0.408]
[1746810049692,0.26399853,633.13,631.65,0.60221572]
[1746810049885,2.0308231,633.14,631.64,0.408]
[1746810049886,0.26399853,633.12,631.64,0.408]
[1746810050085,0.53922571,633.12,631.65,0.60221437]
[1746810050285,0.26399853,633.11,631.66,0.60221437]
[1746810050485,0.26399853,633.11,631.67,0.60221437]
[1746810050685,0.26399853,633.1,631.68,0.60221437]
[1746810050990,0.26399853,633.09,631.64,0.408]
[1746810051191,0.26399853,633.08,631.65,1.59464356]
[1746810051386,0.26399853,633.08,631.66,0.60207283]
[1746810051587,0.26399853,633.07,631.67,0.60207283]
[1746810051786,0.26399853,633.06,631.68,0.60207283]
[1746810051988,0.26399853,633.06,631.64,0.408]
[1746810052188,0.27522718,633.12,631.64,0.408]
[1746810052189,0.26399853,633.05,631.65,1.59441349]
[1746810052388,0.26399853,633.04,631.66,0.60198626]
[1746810052587,0.26399853,633.04,631.67,0.60198626]
[1746810052790,0.26399853,633.04,631.68,0.60188714]
[1746810052990,0.26399853,633.04,631.64,0.408]
[1746810053190,0.53922136,633.03,631.65,0.60188714]
[1746810053391,0.53922136,633.03,631.66,0.60188714]
[1746810053586,0.26399853,633.02,631.64,0.408]
[1746810053992,0.26399853,633.01,631.64,0.408]
[1746810054295,0.26399853,633.0,631.64,0.408]
[1746810054592,0.31596574,632.98,631.64,0.408]
[1746810054888,0.26399853,632.97,631.64,0.408]
[1746810055394,0.26399853,632.96,631.64,0.408]
[1746810055693,0.26399853,632.95,631.65,0.60158373]
[1746810055889,0.26399853,632.95,631.64,0.408]
[1746810056095,0.26399853,632.97,631.65,0.60155694]
[1746810056290,0.26399853,632.96,631.66,0.6015539]
[1746810056490,0.26399853,632.96,631.64,0.408]
[1746810056694,0.26399853,632.96,631.65,0.60147034]
[1746810056894,0.26399853,632.96,631.64,0.408]
[1746810057191,0.26399853,632.95,631.64,0.408]
[1746810057698,0.26399853,632.97,631.64,0.408]
[1746810058291,0.26399853,632.97,631.57,0.495]
[1746810058493,0.26399853,632.97,631.58,1.59283652]
[1746810058693,0.26399853,632.97,631.59,1.59283652]
[1746810058890,0.26399853,632.97,631.6,1.59283652]
[1746810059090,0.26399853,632.97,631.61,1.59283652]
[1746810059292,0.27525766,632.96,631.62,1.59283652]
[1746810059488,0.27525766,632.96,631.63,1.59256145]
[1746810059690,0.27525766,632.96,631.57,0.495]
[1746810059894,0.26399853,632.95,631.58,1.59241134]
[1746810060093,0.26399853,632.95,631.59,1.59241134]
[1746810060293,0.26399853,632.95,631.6,1.59241134]
[1746810060493,0.26399853,632.95,631.61,1.59241134]
[1746810060788,0.27525766,632.96,631.62,1.59241134]
[1746810060990,0.26389239,632.94,631.63,1.59241134]
[1746810061191,0.26389239,632.94,631.64,1.59241134]
[1746810061393,0.26389239,632.94,631.65,1.59209606]
[1746810061594,0.26389239,632.94,631.66,1.59209606]
[1746810061795,0.26389239,632.94,631.67,1.59209606]
[1746810061995,0.26389239,632.94,631.68,1.59209606]
[1746810062191,0.27521521,632.93,631.69,1.59209606]
[1746810062400,0.27521521,632.93,631.7,1.59209606]
[1746810062596,0.26389239,632.92,631.71,1.59209606]
[1746810062892,0.26389239,632.92,631.72,1.59209606]
[1746810063095,0.26389239,632.92,631.73,1.59209606]
[1746810063396,0.26389239,632.92,631.74,1.59209606]
[1746810063595,0.26389239,632.92,631.75,1.59209606]
[1746810063796,0.26389239,632.92,631.76,1.59209606]
[1746810063996,0.26389239,632.92,631.77,1.59209606]
[1746810064197,0.26389239,632.92,631.65,0.416]
[1746810064198,0.26389239,632.92,631.78,1.59209606]
[1746810064397,0.26389239,632.92,631.79,1.59209606]
[1746810064602,0.26389239,632.92,631.8,1.59209606]
[1746810064798,0.26389239,632.92,631.65,0.416]
[1746810065194,0.27516733,632.91,631.65,0.416]
[1746810065494,0.27516733,632.91,631.66,1.59195544]
[1746810065693,0.27516733,632.91,631.65,0.416]
[1746810065898,0.27516733,632.91,631.67,0.60082425]
[1746810066102,0.27516733,632.91,631.68,0.60082425]
[1746810066299,0.27516733,632.91,631.68,0.99111494]
[1746810066499,0.26389239,632.9,631.68,0.99111494]
[1746810066693,0.26389239,632.9,631.69,1.59189795]
[1746810066897,0.26389239,632.9,631.65,0.416]
[1746810067801,0.26389239,632.9,631.66,1.59200082]
[1746810068096,0.26389239,632.9,631.67,1.59200082]
[1746810068299,0.26389239,632.9,631.68,1.59200082]
[1746810068599,0.26389239,632.9,631.69,1.59200082]
[1746810068797,0.26389239,632.9,631.7,1.59200082]
[1746810068994,0.26389239,632.9,631.71,1.59208418]
[1746810069197,0.26389239,632.9,631.72,1.59208418]
[1746810069399,0.26389239,632.9,631.73,1.59208418]
[1746810069599,0.26389239,632.9,631.74,1.59208418]
[1746810069800,0.26389239,632.9,631.75,1.59208418]
[1746810069996,0.26389239,632.9,631.76,1.59208418]
[1746810070201,0.26389239,632.9,631.77,1.59208418]
[1746810070402,0.26389239,632.89,631.65,0.416]
[1746810070605,0.26389239,632.89,631.66,1.59256702]
[1746810070901,0.26389239,632.88,631.67,1.5925836]
[1746810071102,0.26389239,632.87,631.68,1.5925836]
[1746810071296,0.26389239,632.87,631.69,1.5925836]
[1746810071497,0.26389239,632.86,631.65,0.416]
[1746810071702,0.26389239,632.86,631.66,1.59260289]
[1746810071898,0.27516733,632.91,631.67,1.59260289]
[1746810072102,0.27516733,632.91,631.68,1.59260289]
[1746810072304,0.27516733,632.91,631.69,1.59265529]
[1746810072501,0.27516733,632.91,631.65,0.416]
[1746810072701,0.27516733,632.91,631.66,1.5925694]
[1746810073005,0.27516733,632.91,631.67,1.5925694]
[1746810073200,0.27516733,632.91,631.68,1.5925694]
[1746810073400,0.27516733,632.91,631.69,0.60101085]
[1746810073604,0.26402547,632.9,631.65,0.416]
[1746810073799,0.26402547,632.9,631.66,1.5925723]
[1746810073998,0.26402547,632.9,631.67,1.5925723]
[1746810074197,0.27524024,632.89,631.68,1.5925723]
[1746810074403,0.27524024,632.89,631.69,1.5925723]
[1746810074605,0.27524024,632.89,631.65,0.416]
[1746810074806,0.27524024,632.89,631.66,1.59251461]
[1746810075105,0.53926571,632.89,631.67,1.59251461]
[1746810075307,0.53926571,632.89,631.68,0.60099031]
[1746810075500,0.53926571,632.89,631.65,0.416]
[1746810075800,0.26402547,632.88,631.66,1.59255849]
[1746810076002,0.26402547,632.88,631.65,0.416]
[1746810076908,0.26402547,632.88,631.66,1.59265482]
[1746810077111,0.27538399,632.87,631.67,1.59265482]
[1746810077409,0.26402547,632.86,631.65,0.416]
[1746810077605,0.26402547,632.86,631.67,0.344]
[1746810078211,0.26402547,632.85,631.67,0.344]
[1746810078511,0.26402547,632.86,631.67,0.344]
[1746810080415,0.26402547,632.85,631.67,0.344]
[1746810080713,0.26402547,632.86,631.67,0.344]
[1746810083712,0.26402547,632.85,631.67,0.344]
[1746810083914,0.26402547,632.84,631.67,0.344]
[1746810084509,0.26402547,632.83,631.67,0.344]
[1746810084707,0.26402547,632.82,631.67,0.344]
[1746810085115,0.26402547,632.81,631.67,0.344]
[1746810085415,0.26402547,632.8,631.67,0.344]
[1746810085916,0.26402547,632.79,631.67,0.344]
[1746810086113,0.26402547,632.78,631.67,0.344]
[1746810086415,0.26402547,632.77,631.67,0.344]
[1746810086715,0.26402547,632.76,631.67,0.344]
[1746810087114,0.26402547,632.75,631.67,0.344]
[1746810087514,0.26402547,632.74,631.67,0.344]
[1746810087716,0.26402547,632.73,631.67,0.344]
[1746810088111,0.27529032,632.74,631.67,0.344]
[1746810088311,0.26402547,632.73,631.67,0.344]
[1746810089317,0.27530774,632.72,631.67,0.344]
[1746810089617,0.53933321,632.72,631.67,0.344]
[1746810089915,0.27530774,632.72,631.67,0.344]
[1746810090216,0.26402547,632.71,631.67,0.344]
[1746810091213,0.26402547,632.7,631.67,0.344]
[1746810091518,0.26402547,632.69,631.67,0.344]
[1746810091836,0.26402547,632.68,631.67,0.344]
[1746810092319,0.26402547,632.67,631.67,0.344]
[1746810092521,0.26402547,632.66,631.67,0.344]
[1746810092819,0.26402547,632.65,631.67,0.344]
[1746810093418,0.26402547,632.64,631.67,0.344]
[1746810093721,0.26402547,632.63,631.67,0.344]
[1746810094024,0.26402547,632.62,631.67,0.799]
[1746810094415,0.26402547,632.71,631.67,0.799]
[1746810094722,0.26402547,632.7,631.67,0.799]
[1746810095122,0.53933757,632.69,631.67,0.799]
[1746810095421,0.26402547,632.68,631.67,0.799]
[1746810097326,0.31612556,632.66,631.67,0.799]
[1746810097926,0.26402547,632.65,631.67,0.799]
[1746810098219,0.53935064,632.65,631.67,0.799]
[1746810098626,0.26402547,632.64,631.67,0.799]
[1746810101328,0.27525984,632.63,631.67,0.799]
[1746810101626,0.26402547,632.62,631.67,0.799]
[1746810101925,0.26402547,632.62,631.68,0.60091334]
[1746810102125,0.26402547,632.62,631.69,1.59222295]
[1746810102326,0.26402547,632.62,631.7,1.59222295]
[1746810102522,0.26402547,632.62,631.71,1.59222295]
[1746810102727,0.26402547,632.62,631.72,1.59222295]
[1746810102928,0.44,632.65,631.73,1.59222295]
[1746810103127,0.44,632.65,631.74,1.59222295]
[1746810103325,0.26479825,632.64,631.75,1.59222295]
[1746810103525,0.26479825,632.64,631.76,1.59192582]
[1746810103726,0.26479825,632.64,631.77,1.59192582]
[1746810103929,0.26479825,632.64,631.78,1.59192582]
[1746810104132,0.26479825,632.64,631.79,1.59192582]
[1746810104431,0.44,632.65,631.8,1.59192582]
[1746810104630,0.2648287,632.64,631.81,1.59192582]
[1746810104828,0.2648287,632.64,631.82,1.59192582]
[1746810105027,0.2648287,632.64,631.83,1.59192582]
[1746810105335,0.2648287,632.64,631.84,1.59192582]
[1746810105524,0.2648287,632.64,631.85,1.59192582]
[1746810105724,0.2648287,632.64,631.86,1.59192582]
[1746810105926,0.2648287,632.64,631.87,1.59192582]
[1746810106126,0.44,632.65,631.88,1.59192582]
[1746810106326,0.44,632.65,631.89,1.59192582]
[1746810106527,0.44,632.65,631.9,1.59192582]
[1746810106730,0.44,632.65,631.91,1.59192582]
[1746810106930,0.44,632.65,631.92,1.58937981]
[1746810107131,0.44,632.65,631.77,0.488]
[1746810107132,0.44,632.65,631.93,1.58937981]
[1746810107331,0.44,632.65,631.94,1.58937981]
[1746810107533,0.44,632.65,631.95,1.58937981]
[1746810107733,0.44,632.65,631.96,1.58937981]
[1746810108033,0.44,632.65,631.97,1.58937981]
[1746810108230,0.44,632.65,631.98,1.58937981]
[1746810108434,0.44,632.65,631.99,1.58937981]
[1746810108632,0.44,632.65,632.0,1.58937981]
[1746810108934,0.44,632.65,632.01,1.58874826]
[1746810109138,0.44,632.65,632.02,0.98956562]
[1746810109330,0.44,632.65,632.03,0.98956562]
[1746810109537,0.44,632.65,632.04,0.98809473]
[1746810109732,0.44,632.65,631.77,0.488]
[1746810109938,0.44,632.65,631.78,1.87767339]
[1746810110138,0.44,632.65,631.79,1.58702642]
[1746810110334,0.44,632.65,631.8,1.58702642]
[1746810110534,0.44,632.65,631.81,1.58702642]
[1746810110738,0.44,632.65,631.82,1.58702642]
[1746810110940,0.44,632.65,631.83,1.58683656]
[1746810111241,0.44,632.65,631.84,1.58683656]
[1746810111433,0.44,632.65,631.85,1.58683656]
[1746810111634,0.44,632.65,631.86,1.58683656]
[1746810111835,0.44,632.65,631.87,1.58683656]
[1746810112140,0.44,632.65,631.88,1.58572935]
[1746810112339,0.44,632.65,631.89,1.58572935]
[1746810112536,0.44,632.65,631.9,1.58572935]
[1746810112737,0.44,632.65,631.91,1.58572935]
[1746810113038,0.44,632.65,631.92,1.58572935]
[1746810113234,0.44,632.65,631.93,1.58572935]
[1746810113437,0.44,632.65,631.94,1.58477095]
[1746810113732,0.44,632.65,631.95,1.58477095]
[1746810113939,0.44,632.65,631.96,1.58477095]
[1746810114136,0.44,632.65,631.97,1.58477095]
[1746810114335,0.44,632.65,631.98,1.58477095]
[1746810114636,0.44,632.65,631.99,0.98669919]
[1746810114834,0.44,632.65,632.0,0.98669919]
[1746810115041,0.44,632.65,632.01,0.98669919]
[1746810115235,0.44,632.65,632.02,0.98669919]
[1746810115435,0.44,632.65,632.03,0.98669919]
[1746810115640,0.44,632.65,632.04,0.98669919]
[1746810115837,0.44,632.65,631.77,0.957]
[1746810116045,0.44,632.65,631.78,1.58348472]
[1746810116339,0.44,632.65,631.77,0.957]
[1746810116540,0.44,632.65,631.78,1.58321868]
[1746810116844,0.31614055,632.63,631.79,1.58321868]
[1746810117045,0.31614055,632.63,631.8,1.58321868]
[1746810117241,0.31614055,632.63,631.81,1.58321868]
[1746810117441,0.31614055,632.63,631.82,1.87385674]
[1746810117639,0.31614055,632.63,631.83,1.58321868]
[1746810117943,0.31614055,632.63,631.84,1.87385674]
[1746810118239,0.31614055,632.63,631.85,1.58321868]
[1746810118445,0.31614055,632.63,631.86,1.58321868]
[1746810118637,0.31614055,632.63,631.77,0.957]
[1746810118638,0.31614055,632.63,631.87,1.58321868]
[1746810118842,0.31614055,632.63,631.88,1.58321868]
[1746810119045,0.31614055,632.63,631.89,1.58321868]
[1746810119240,0.31614055,632.63,631.9,1.58321868]
[1746810119442,0.31614055,632.63,631.91,1.58321868]
[1746810119642,0.31614055,632.63,631.92,1.58321868]
[1746810119838,0.31614055,632.63,631.93,1.58264529]
[1746810120040,0.31614055,632.63,631.94,1.58264529]
[1746810120243,0.31614055,632.63,631.95,1.58264529]
[1746810120442,0.31614055,632.63,631.96,1.58264529]
[1746810120642,0.31614055,632.63,631.97,1.58264529]
[1746810120841,0.31614055,632.63,631.98,1.58264529]
[1746810121041,0.31614055,632.63,631.99,1.58264529]
[1746810121245,0.31614055,632.63,632.0,1.58264529]
[1746810121444,0.31614055,632.63,632.01,1.58264529]
[1746810121644,0.31614055,632.63,632.02,1.5806511]
[1746810121841,0.31614055,632.63,632.03,1.5806511]
[1746810122040,0.31614055,632.63,632.04,1.5806511]
[1746810122240,0.31614055,632.63,632.05,1.5806511]
[1746810122444,0.31614055,632.63,632.06,1.5806511]